{"text_format":"1","workbook":"xlsx","n_sheets":3,"sheets":["FORM","DATA","Update School Info Here"],"not_rendered":{"charts":0,"images":0,"macros":0,"external_links":1,"defined_names":19,"comments":0,"pivot_tables":0},"unopened":[],"bounds":{"document_bytes":16777216,"sheet_cells":100000,"rows_first":2000,"rows_last":500,"rows_between":2000,"halvings":0,"cell_chars":16384,"cell_head_chars":4096},"cells_cut":0,"cells_raw":0,"read":"whole","date_system":"1900"}

{"sheet":"FORM","index":0,"n_rows":47,"n_cols":18,"rows_kept":47,"cut":false,"hidden":false,"merged":[[27,2,27,3],[26,2,26,3],[21,4,23,6],[26,4,26,6],[27,4,27,6],[24,4,24,6],[25,4,25,6],[28,4,28,6],[44,1,45,7],[3,2,3,3],[29,2,29,3],[36,1,36,3],[36,5,36,7],[30,2,30,3],[31,2,31,3],[33,1,34,7],[29,4,29,6],[30,4,30,6],[31,4,31,6],[28,2,28,3],[21,2,23,3],[24,2,24,3],[25,2,25,3],[14,2,14,5],[8,2,8,5],[16,2,16,5],[9,2,9,5],[10,2,10,5]]}
[null,{"$f":"IF(Lang=1,P5,P6)","v":"Shared Services Enrolment Report - Facilities and Resources"}]
[null,null,null,null,null,null,null,null,null,null,null,null,null,null,null,"English",1]
[null,null,null,null,null,null,null,null,null,null,null,null,null,null,null,"Francais"]
[null,{"$f":"IF(Lang=1,P7,R7)","v":"School Year"},{"$f":"VLOOKUP(YEARNUM,YEARLOOKUP,2)","v":"2026-27"}]
[null,null,null,null,null,null,null,null,null,null,null,null,null,null,null,"Shared Services Enrolment Report - Facilities and Resources"]
[null,{"$f":"IF(Lang=1,P8,R8)","v":"Submit to"},{"$f":"IF(Lang=1,P9,R9)","v":"Education Funding Branch"},null,null,null,null,null,null,null,null,null,null,null,null,"Rapport sur les inscriptions scolaires aux services partagés - Installations et Ressources"]
[null,null,null,null,null,null,null,null,null,null,null,null,null,null,null,"School Year",null,"Anneé scolaire"]
[null,null,null,null,null,null,null,null,null,null,null,null,null,null,null,"Submit to",null,"Soumettre à"]
[null,{"$f":"IF(Lang=1,P10,R10)","v":"Independent School"},{"$f":"IF(SCHNUM=1,\"\",VLOOKUP(SCHNUM,LOOKUPTABLE,2))","v":""},null,null,null,null,null,null,null,null,null,null,null,null,"Education Funding Branch",null,"Direction du financement de l’éducation"]
[null,{"$f":"IF(Lang=1,P11,R11)","v":"Address *"},{"$f":"IF(SCHNUM=1,\"\",VLOOKUP(SCHNUM,LOOKUPTABLE,3))","v":""},null,null,null,null,null,null,null,null,null,null,null,null,"Independent School",null,"École indépendante"]
[null,null,{"$f":"IF(SCHNUM=1,\"\",VLOOKUP(SCHNUM,LOOKUPTABLE,4))","v":""},null,null,null,null,null,null,null,null,null,null,null,null,"Address *",null,"Adresse*"]
[null,{"$f":"IF(Lang=1,P42,P43)","v":"* Provide a separate report for each school location."},null,null,null,null,null,null,null,null,null,null,null,null,null,"Public School Attended",null,"École publique fréquentée"]
[null,null,null,null,null,null,null,null,null,null,null,null,null,null,null,"School Division",null,"Division scolaire"]
[null,null,null,null,null,null,null,null,null,null,null,null,null,null,null,"Facility / Resource",null,"Établissement / ressource"]
[null,{"$f":"IF(Lang=1,P12,R12)","v":"Public School Attended"},{"$f":"IF(PUBNUM=1,\"\",VLOOKUP(PUBNUM,PUBLOOKUP,2))","v":""}]
[null,null,null,null,null,null,null,null,null,null,null,null,null,null,null,"           Home Economics",null,"           Industrial Arts"]
[null,{"$f":"IF(Lang=1,P13,R13)","v":"School Division"},{"$f":"IF(PUBNUM=1,\"\",VLOOKUP(PUBNUM,PUBLOOKUP,3))","v":""},null,null,null,"                                                                                                                                                                       ",null,null,null,null,null,null,null,null,"           Économie familiale",null,"           Arts industriels"]
[null,null,null,null,null,null,null,null,null,null,null,null,null,null,null,"Click box(es) to ",null,"Cochez toutes les "]
[null,"Facility / Resource :",{"$f":"IF(Lang=1,P16,P17)","v":"           Home Economics"},null,null,{"$f":"IF(Lang=1,P18,R18)","v":"Click box(es) to "},null,null,null,null,null,null,null,null,null,"add checkmark",null,"cases qui s’appliquent"]
[null,null,{"$f":"IF(Lang=1,R16,R17)","v":"           Industrial Arts"},null,null,{"$f":"IF(Lang=1,P19,R19)","v":"add checkmark"}]
[null,null,null,null,null,null,null,null,null,null,null,null,null,null,null,"Grade/Level",null,"Année ou niveau"]
[null,null,{"$f":"IF(Lang=1,P21,R21)","v":"Grade/Level"},null,{"$f":"IF(Lang=1,P22,R22)","v":"Number of Eligible Pupils using Facilities/Resources"},null,null,null,null,null,null,null,null,null,null,"Number of Eligible Pupils using Facilities/Resources",null,"Nombre d’élèves admissibles utilisant les installations/ressources"]
[null,null,null,null,null,null,null,null,null,null,null,null,null,null,null,"    Grade 6",null,"    6e année"]
[null,null,null,null,null,null,null,null,null,null,null,null,null,null,null,"    Grade 7",null,"    7e année"]
[null,null,{"$f":"IF(Lang=1,P23,R23)","v":"    Grade 6"},null,null,null,null,null,null,null,null,null,null,null,null,"    Grade 8",null,"    8e année"]
[null,null,"    Grade 7",null,null,null,null,null,null,null,null,null,null,null,null,"    Grade 9",null,"    9e année"]
[null,null,"    Grade 8",null,null,null,null,null,null,null,null,null,null,null,null,"    Grade 10",null,"    10e année"]
[null,null,"    Grade 9",null,null,null,null,null,null,null,null,null,null,null,null,"    Grade 11",null,"    11e année"]
[null,null,"    Grade 10",null,null,null,null,null,null,null,null,null,null,null,null,"    Grade 12",null,"    12e année"]
[null,null,"    Grade 11"]
[null,null,"    Grade 12",null,null,null,null,null,null,null,null,null,null,null,null,"We hereby certify that the above information is true and correct, and in accordance with the Public Schools Act and Manitoba Regulations."]
[null,null,"    Total",null,{"$f":"SUM(E25:F31)","v":0},null,null,null,null,null,null,null,null,null,null,"Nous certifions par les présentes que les renseignements ci-dessus sont véridiques et exacts, et conformes à la Loi sur les écoles publiques et aux règlements du Manitoba."]
[]
[null,{"$f":"IF(Lang=1,P31,P32)","v":"We hereby certify that the above information is true and correct, and in accordance with the Public Schools Act and Manitoba Regulations."},null,null,null,null,null,null,null,null,null,null,null,null,null,"Independent School",null,"École indépendante :"]
[null,null,null,null,null,null,null,null,null,null,null,null,null,null,null,"School Division",null,"Division scolaire"]
[null,null,null,null,null,null,null,null,null,null,null,null,null,null,null,"Principal",null,"Directeur d’école"]
[null,{"$f":"IF(Lang=1,P34,R34)","v":"Independent School"},null,null,null,{"$f":"IF(Lang=1,P35,R35)","v":"School Division"},null,null,null,null,null,null,null,null,null,"Secretary-Treasurer",null,"Secrétaire-trésorier"]
[null,null,null,null,null,null,null,null,null,null,null,null,null,null,null,"Chairperson",null,"Président"]
[null,null,null,null,null,null,null,null,null,null,null,null,null,null,null,"Superintendent",null,"Directrice générale"]
[null,{"$f":"IF(Lang=1,P36,R36)","v":"Principal"},null,"   Date",null,{"$f":"IF(Lang=1,P37,R37)","v":"Secretary-Treasurer"},null,"Date         ",null,null,null,null,null,null,null,null,null,"Directeur général"]
[]
[null,null,null,null,null,null,null,null,null,null,null,null,null,null,null,"* Provide a separate report for each school location."]
[null,{"$f":"IF(Lang=1,P38,R38)","v":"Chairperson"},null,"   Date",null,{"$f":"IF(Lang=1,P39,R39)","v":"Superintendent"},null,"Date         ",null,null,null,null,null,null,null,"* Veuillez fournir un rapport séparé pour chaque établissement scolaire."]
[null,null,null,null,null,{"$f":"IF(Lang=1,\"\",R40)","v":""},null,null,null,null,null,null,null,null,null,"After the school division has signed this form, please forward to the Education Funding Branch."]
[null,{"$f":"IF(Lang=1,P44,P45)","v":"After the school division has signed this form, please forward to the Education Funding Branch."},null,null,null,null,null,null,null,null,null,null,null,null,null,"Lorsque la division scolaire aura signé ce formulaire, veuillez l’acheminer à la Direction du financement de l’éducation."]
[null,null,null,null,null,null,null,null,null,null,null,null,null,null,null,"May 2026",null,"Mai 2026"]
[null,{"$f":"IF(Lang=1,P46,R46)","v":"May 2026"}]

{"sheet":"DATA","index":1,"n_rows":163,"n_cols":23,"rows_kept":163,"cut":false,"hidden":true,"merged":[]}
["SCHNUM",1,1,{"$f":"IF(Lang=1,E1,F1)","v":"Press arrow for your School Name ->"},"Press arrow for your School Name ->","Appuyez sur la flèche pour sélectionner le nom de votre école ->",null,1,{"$f":"IF(Lang=1,O1,O2)","v":"Press arrow for the Public School ->"},null,1,{"$f":"IF(Lang=1,O4,O5)","v":"Press arrow for School Division ->"},null,null,"Press arrow for the Public School ->"]
[null,null,2,{"$f":"SUBSTITUTE(PROPER('Update School Info Here'!E5),\"'S\",\"'s\")","v":"Académie Islamique Du Manitoba"},{"$f":"SUBSTITUTE(PROPER('Update School Info Here'!F5),\"'S\",\"'s\")","v":"178 Worthington Avenue     "},{"$f":"SUBSTITUTE(PROPER('Update School Info Here'!I5),\"'S\",\"'s\")&\"     \"&'Update School Info Here'!J5","v":"Winnipeg     R2M1R7"},null,{"$f":"+H1+1","v":2},null,null,{"$f":"+K1+1","v":2},"Beautiful Plains",null,null,"Appuyez sur la flèche pour sélectionner l’école publique ->"]
["PUBNUM",1,3,{"$f":"SUBSTITUTE(PROPER('Update School Info Here'!E6),\"'S\",\"'s\")","v":"Alhijra Islamic School"},{"$f":"SUBSTITUTE(PROPER('Update School Info Here'!F6),\"'S\",\"'s\")","v":"410 Desalaberry Avenue     "},{"$f":"SUBSTITUTE(PROPER('Update School Info Here'!I6),\"'S\",\"'s\")&\"     \"&'Update School Info Here'!J6","v":"Winnipeg     R2L0Y7"},null,{"$f":"+H2+1","v":3},{"$f":"W3&\" - \"&V3","v":"Border Land - École Elmwood School"},null,{"$f":"+K2+1","v":3},"Border Land",null,null,null,null,null,null,null,null,null,"École Elmwood School","Border Land"]
[null,null,4,{"$f":"SUBSTITUTE(PROPER('Update School Info Here'!E7),\"'S\",\"'s\")","v":"Austin Christian Academy"},{"$f":"SUBSTITUTE(PROPER('Update School Info Here'!F7),\"'S\",\"'s\")","v":"Box 460     "},{"$f":"SUBSTITUTE(PROPER('Update School Info Here'!I7),\"'S\",\"'s\")&\"     \"&'Update School Info Here'!J7","v":"Austin     R0H0C0"},null,4,"Border Land - École Parkside School",null,4,"Brandon",null,null,"Press arrow for School Division ->",null,null,null,null,null,null,"École Parkside School","Border Land"]
["YEARNUM",1,5,{"$f":"SUBSTITUTE(PROPER('Update School Info Here'!E8),\"'S\",\"'s\")","v":"Balmoral Hall School"},{"$f":"SUBSTITUTE(PROPER('Update School Info Here'!F8),\"'S\",\"'s\")","v":"630 Westminster Avenue     "},{"$f":"SUBSTITUTE(PROPER('Update School Info Here'!I8),\"'S\",\"'s\")&\"     \"&'Update School Info Here'!J8","v":"Winnipeg     R3C3S1"},null,5,"Border Land - École West Park School",null,5,"Division scolaire franco-manitobaine",null,null,"Appuyez sur la flèche pour sélectionner la division scolaire ->",null,null,null,null,null,null,"École West Park School","Border Land"]
[null,null,6,{"$f":"SUBSTITUTE(PROPER('Update School Info Here'!E9),\"'S\",\"'s\")","v":"Beautiful Savior Lutheran School"},{"$f":"SUBSTITUTE(PROPER('Update School Info Here'!F9),\"'S\",\"'s\")","v":"52 Birchdale Ave.     "},{"$f":"SUBSTITUTE(PROPER('Update School Info Here'!I9),\"'S\",\"'s\")&\"     \"&'Update School Info Here'!J9","v":"Winnipeg     R2H1R9"},null,6,"Border Land - Emerson Elementary",null,6,"Evergreen",null,null,null,null,null,null,null,null,null,"Emerson Elementary","Border Land"]
["DivNum",1,7,{"$f":"SUBSTITUTE(PROPER('Update School Info Here'!E10),\"'S\",\"'s\")","v":"Calvin Christian School"},{"$f":"SUBSTITUTE(PROPER('Update School Info Here'!F10),\"'S\",\"'s\")","v":"245 Sutton Avenue     "},{"$f":"SUBSTITUTE(PROPER('Update School Info Here'!I10),\"'S\",\"'s\")&\"     \"&'Update School Info Here'!J10","v":"Winnipeg     R2G0T1"},null,7,"Border Land - Green Ridge School",null,7,"Flin Flon",null,null,null,null,null,null,null,null,null,"Green Ridge School","Border Land"]
[null,null,8,{"$f":"SUBSTITUTE(PROPER('Update School Info Here'!E11),\"'S\",\"'s\")","v":"Cartwright Community Independent Sch."},{"$f":"SUBSTITUTE(PROPER('Update School Info Here'!F11),\"'S\",\"'s\")","v":"Box 419  810 Broadway Street     "},{"$f":"SUBSTITUTE(PROPER('Update School Info Here'!I11),\"'S\",\"'s\")&\"     \"&'Update School Info Here'!J11","v":"Cartwright     R0K0L0"},null,8,"Border Land - Gretna Elementary",null,8,"Fort La Bosse",null,null,null,null,null,null,null,null,null,"Gretna Elementary","Border Land"]
[null,null,9,{"$f":"SUBSTITUTE(PROPER('Update School Info Here'!E12),\"'S\",\"'s\")","v":"Children's House"},{"$f":"SUBSTITUTE(PROPER('Update School Info Here'!F12),\"'S\",\"'s\")","v":"150 Pacific Avenue     "},{"$f":"SUBSTITUTE(PROPER('Update School Info Here'!I12),\"'S\",\"'s\")&\"     \"&'Update School Info Here'!J12","v":"Winnipeg     R3B3K8"},null,9,"Border Land - Roseau Valley School",null,9,"Frontier",null,null,null,null,null,null,null,null,null,"Roseau Valley School","Border Land"]
[null,null,10,{"$f":"SUBSTITUTE(PROPER('Update School Info Here'!E13),\"'S\",\"'s\")","v":"Christ The King School"},{"$f":"SUBSTITUTE(PROPER('Update School Info Here'!F13),\"'S\",\"'s\")","v":"12 Lennox Avenue     "},{"$f":"SUBSTITUTE(PROPER('Update School Info Here'!I13),\"'S\",\"'s\")&\"     \"&'Update School Info Here'!J13","v":"Winnipeg     R2M1A6"},null,10,"Border Land - Rosenfeld Elementary",null,10,"Garden Valley",null,null,null,null,null,null,null,null,null,"Rosenfeld Elementary","Border Land"]
[null,null,11,{"$f":"SUBSTITUTE(PROPER('Update School Info Here'!E14),\"'S\",\"'s\")","v":"Christian Heritage School"},{"$f":"SUBSTITUTE(PROPER('Update School Info Here'!F14),\"'S\",\"'s\")","v":"2025 26Th Street     "},{"$f":"SUBSTITUTE(PROPER('Update School Info Here'!I14),\"'S\",\"'s\")&\"     \"&'Update School Info Here'!J14","v":"Brandon     R7B3Y2"},null,11,"Border Land - Ross L. Gray School",null,11,"Hanover",null,null,null,null,null,null,null,null,null,"Ross L. Gray School","Border Land"]
[null,null,12,{"$f":"SUBSTITUTE(PROPER('Update School Info Here'!E15),\"'S\",\"'s\")","v":"Community Bible Fellowship Christian"},{"$f":"SUBSTITUTE(PROPER('Update School Info Here'!F15),\"'S\",\"'s\")","v":"Box 1630     "},{"$f":"SUBSTITUTE(PROPER('Update School Info Here'!I15),\"'S\",\"'s\")&\"     \"&'Update School Info Here'!J15","v":"Swan River     R0L1Z0"},null,12,"Border Land - Shevchenko School",null,12,"Interlake",null,null,null,null,null,null,null,null,null,"Shevchenko School","Border Land"]
[null,null,{"$f":"+C12+1","v":13},{"$f":"SUBSTITUTE(PROPER('Update School Info Here'!E16),\"'S\",\"'s\")","v":"Dasmesh School"},{"$f":"SUBSTITUTE(PROPER('Update School Info Here'!F16),\"'S\",\"'s\")","v":"105 Holmes Road     "},{"$f":"SUBSTITUTE(PROPER('Update School Info Here'!I16),\"'S\",\"'s\")&\"     \"&'Update School Info Here'!J16","v":"West St. Paul     R4A6A2"},null,13,"Border Land - W. C. Miller Collegiate",null,13,"Kelsey",null,null,null,null,null,null,null,null,null,"W. C. Miller Collegiate","Border Land"]
[null,null,{"$f":"+C13+1","v":14},{"$f":"SUBSTITUTE(PROPER('Update School Info Here'!E17),\"'S\",\"'s\")","v":"Dufferin Christian School"},{"$f":"SUBSTITUTE(PROPER('Update School Info Here'!F17),\"'S\",\"'s\")","v":"Box 1450     "},{"$f":"SUBSTITUTE(PROPER('Update School Info Here'!I17),\"'S\",\"'s\")&\"     \"&'Update School Info Here'!J17","v":"Carman     R0G0J0"},null,14,"Brandon - Alexander School",null,14,"Lakeshore",null,null,null,null,null,null,null,null,null,"Alexander School","Brandon"]
[null,null,15,{"$f":"SUBSTITUTE(PROPER('Update School Info Here'!E18),\"'S\",\"'s\")","v":"Faith Academy"},{"$f":"SUBSTITUTE(PROPER('Update School Info Here'!F18),\"'S\",\"'s\")","v":"437 Matheson Ave.     "},{"$f":"SUBSTITUTE(PROPER('Update School Info Here'!I18),\"'S\",\"'s\")&\"     \"&'Update School Info Here'!J18","v":"Winnipeg     R2W0E1"},null,15,"Brandon - Betty Gibson School",null,15,"Lord Selkirk",null,null,null,null,null,null,null,null,null,"Betty Gibson School","Brandon"]
[null,null,16,{"$f":"SUBSTITUTE(PROPER('Update School Info Here'!E19),\"'S\",\"'s\")","v":"Freedom International School"},{"$f":"SUBSTITUTE(PROPER('Update School Info Here'!F19),\"'S\",\"'s\")","v":"771 Sargent Avenue     "},{"$f":"SUBSTITUTE(PROPER('Update School Info Here'!I19),\"'S\",\"'s\")&\"     \"&'Update School Info Here'!J19","v":"Winnipeg     R3E0B5"},null,16,"Brandon - Crocus Plains Regional Secondary",null,16,"Louis Riel",null,null,null,null,null,null,null,null,null,"Crocus Plains Regional Secondary","Brandon"]
[null,null,17,{"$f":"SUBSTITUTE(PROPER('Update School Info Here'!E20),\"'S\",\"'s\")","v":"Gables Heritage"},{"$f":"SUBSTITUTE(PROPER('Update School Info Here'!F20),\"'S\",\"'s\")","v":"Box 1558"},{"$f":"SUBSTITUTE(PROPER('Update School Info Here'!I20),\"'S\",\"'s\")&\"     \"&'Update School Info Here'!J20","v":"Altona     R0G 0B0"},null,17,"Brandon - Earl Oxford School",null,17,"Mountain View",null,null,null,null,null,null,null,null,null,"Earl Oxford School","Brandon"]
[1,"2026-27",18,{"$f":"SUBSTITUTE(PROPER('Update School Info Here'!E21),\"'S\",\"'s\")","v":"Gonzaga Middle School"},{"$f":"SUBSTITUTE(PROPER('Update School Info Here'!F21),\"'S\",\"'s\")","v":"174 Maple Street North     "},{"$f":"SUBSTITUTE(PROPER('Update School Info Here'!I21),\"'S\",\"'s\")&\"     \"&'Update School Info Here'!J21","v":"Winnipeg     R2W3L4"},null,18,"Brandon - École Harrison",null,18,"Mystery Lake",null,null,null,null,null,null,null,null,null,"École Harrison","Brandon"]
[2,"2027-28",19,{"$f":"SUBSTITUTE(PROPER('Update School Info Here'!E22),\"'S\",\"'s\")","v":"Gray Academy Of Jewish Education"},{"$f":"SUBSTITUTE(PROPER('Update School Info Here'!F22),\"'S\",\"'s\")","v":"100 - 123 Doncaster Street     "},{"$f":"SUBSTITUTE(PROPER('Update School Info Here'!I22),\"'S\",\"'s\")&\"     \"&'Update School Info Here'!J22","v":"Winnipeg     R3N2B4"},null,19,"Brandon - George Fitton School",null,19,"Park West",null,null,null,null,null,null,null,null,null,"George Fitton School","Brandon"]
[3,"2028-29",20,{"$f":"SUBSTITUTE(PROPER('Update School Info Here'!E23),\"'S\",\"'s\")","v":"Green Acres Colony High School"},{"$f":"SUBSTITUTE(PROPER('Update School Info Here'!F23),\"'S\",\"'s\")","v":"Box 190     "},{"$f":"SUBSTITUTE(PROPER('Update School Info Here'!I23),\"'S\",\"'s\")&\"     \"&'Update School Info Here'!J23","v":"Wawanesa     R0K2G0"},null,20,"Brandon - Green Acres School",null,20,"Pembina Trails",null,null,null,null,null,null,null,null,null,"Green Acres School","Brandon"]
[4,"2029-30",21,{"$f":"SUBSTITUTE(PROPER('Update School Info Here'!E24),\"'S\",\"'s\")","v":"H. B. Community School"},{"$f":"SUBSTITUTE(PROPER('Update School Info Here'!F24),\"'S\",\"'s\")","v":"Box 40     "},{"$f":"SUBSTITUTE(PROPER('Update School Info Here'!I24),\"'S\",\"'s\")&\"     \"&'Update School Info Here'!J24","v":"Macgregor     R0H0R0"},null,21,"Brandon - J. R. Reid School",null,21,"Pine Creek",null,null,null,null,null,null,null,null,null,"J. R. Reid School","Brandon"]
[5,"2030-31",22,{"$f":"SUBSTITUTE(PROPER('Update School Info Here'!E25),\"'S\",\"'s\")","v":"Holy Cross School"},{"$f":"SUBSTITUTE(PROPER('Update School Info Here'!F25),\"'S\",\"'s\")","v":"300 Dubuc Street     "},{"$f":"SUBSTITUTE(PROPER('Update School Info Here'!I25),\"'S\",\"'s\")&\"     \"&'Update School Info Here'!J25","v":"Winnipeg     R2H1E4"},null,22,"Brandon - King George School",null,22,"Portage La Prairie",null,null,null,null,null,null,null,null,null,"King George School","Brandon"]
[null,null,23,{"$f":"SUBSTITUTE(PROPER('Update School Info Here'!E26),\"'S\",\"'s\")","v":"Holy Ghost School"},{"$f":"SUBSTITUTE(PROPER('Update School Info Here'!F26),\"'S\",\"'s\")","v":"319 Selkirk Avenue     "},{"$f":"SUBSTITUTE(PROPER('Update School Info Here'!I26),\"'S\",\"'s\")&\"     \"&'Update School Info Here'!J26","v":"Winnipeg     R2W2L8"},null,23,"Brandon - Kirkcaldy Heights School",null,23,"Prairie Rose",null,null,null,null,null,null,null,null,null,"Kirkcaldy Heights School","Brandon"]
[null,null,24,{"$f":"SUBSTITUTE(PROPER('Update School Info Here'!E27),\"'S\",\"'s\")","v":"Hope Christian Academy Winnipeg Inc."},{"$f":"SUBSTITUTE(PROPER('Update School Info Here'!F27),\"'S\",\"'s\")","v":"418 Aberdeen Avenue     "},{"$f":"SUBSTITUTE(PROPER('Update School Info Here'!I27),\"'S\",\"'s\")&\"     \"&'Update School Info Here'!J27","v":"Winnipeg     R2W1V7"},null,24,"Brandon - Linden Lanes School",null,24,"Prairie Spirit",null,null,null,null,null,null,null,null,null,"Linden Lanes School","Brandon"]
[null,null,25,{"$f":"SUBSTITUTE(PROPER('Update School Info Here'!E28),\"'S\",\"'s\")","v":"Immaculate Heart Of Mary School"},{"$f":"SUBSTITUTE(PROPER('Update School Info Here'!F28),\"'S\",\"'s\")","v":"650 Flora Avenue     "},{"$f":"SUBSTITUTE(PROPER('Update School Info Here'!I28),\"'S\",\"'s\")&\"     \"&'Update School Info Here'!J28","v":"Winnipeg     R2W2S5"},null,25,"Brandon - Maryland Park School",null,25,"Red River Valley",null,null,null,null,null,null,null,null,null,"Maryland Park School","Brandon"]
[null,null,26,{"$f":"SUBSTITUTE(PROPER('Update School Info Here'!E29),\"'S\",\"'s\")","v":"Immanuel Christian School"},{"$f":"SUBSTITUTE(PROPER('Update School Info Here'!F29),\"'S\",\"'s\")","v":"215 Rougeau Avenue     "},{"$f":"SUBSTITUTE(PROPER('Update School Info Here'!I29),\"'S\",\"'s\")&\"     \"&'Update School Info Here'!J29","v":"Winnipeg     R2C3Z9"},null,26,"Brandon - Meadows School",null,26,"Rolling River",null,null,null,null,null,null,null,null,null,"Meadows School","Brandon"]
[null,null,27,{"$f":"SUBSTITUTE(PROPER('Update School Info Here'!E30),\"'S\",\"'s\")","v":"Inspired Explorations Learning Community"},{"$f":"SUBSTITUTE(PROPER('Update School Info Here'!F30),\"'S\",\"'s\")","v":"Unit A - 5905 Roblin Blvd     "},{"$f":"SUBSTITUTE(PROPER('Update School Info Here'!I30),\"'S\",\"'s\")&\"     \"&'Update School Info Here'!J30","v":"Winnipeg     R3R0G8"},null,27,"Brandon - Neelin High",null,27,"Seine River",null,null,null,null,null,null,null,null,null,"Neelin High","Brandon"]
[null,null,28,{"$f":"SUBSTITUTE(PROPER('Update School Info Here'!E31),\"'S\",\"'s\")","v":"Iqra Islamic School"},{"$f":"SUBSTITUTE(PROPER('Update School Info Here'!F31),\"'S\",\"'s\")","v":"404 Webb Place     "},{"$f":"SUBSTITUTE(PROPER('Update School Info Here'!I31),\"'S\",\"'s\")&\"     \"&'Update School Info Here'!J31","v":"Winnipeg     R3B3J4"},null,28,"Brandon - New Era School",null,28,"Seven Oaks",null,null,null,null,null,null,null,null,null,"New Era School","Brandon"]
[null,null,29,{"$f":"SUBSTITUTE(PROPER('Update School Info Here'!E32),\"'S\",\"'s\")","v":"Kola Community School"},{"$f":"SUBSTITUTE(PROPER('Update School Info Here'!F32),\"'S\",\"'s\")","v":"Box 553     "},{"$f":"SUBSTITUTE(PROPER('Update School Info Here'!I32),\"'S\",\"'s\")&\"     \"&'Update School Info Here'!J32","v":"Kola     R0M1B0"},null,29,"Brandon - O'Kelly School",null,29,"Southwest Horizon",null,null,null,null,null,null,null,null,null,"O'Kelly School","Brandon"]
[null,null,30,{"$f":"SUBSTITUTE(PROPER('Update School Info Here'!E33),\"'S\",\"'s\")","v":"Lakeside Christian School"},{"$f":"SUBSTITUTE(PROPER('Update School Info Here'!F33),\"'S\",\"'s\")","v":"Box 894     237 Hammond Street"},{"$f":"SUBSTITUTE(PROPER('Update School Info Here'!I33),\"'S\",\"'s\")&\"     \"&'Update School Info Here'!J33","v":"Killarney     R0K1G0"},null,30,"Brandon - Prairie Hope High School",null,30,"St James-Assiniboia",null,null,null,null,null,null,null,null,null,"Prairie Hope High School","Brandon"]
[null,"2026-27",31,{"$f":"SUBSTITUTE(PROPER('Update School Info Here'!E34),\"'S\",\"'s\")","v":"Linden Christian School"},{"$f":"SUBSTITUTE(PROPER('Update School Info Here'!F34),\"'S\",\"'s\")","v":"877 Wilkes Avenue     "},{"$f":"SUBSTITUTE(PROPER('Update School Info Here'!I34),\"'S\",\"'s\")&\"     \"&'Update School Info Here'!J34","v":"Winnipeg     R3P1B8"},null,31,"Brandon - Riverheights School",null,31,"Sunrise",null,null,null,null,null,null,null,null,null,"Riverheights School","Brandon"]
[null,"2027-28",32,{"$f":"SUBSTITUTE(PROPER('Update School Info Here'!E35),\"'S\",\"'s\")","v":"Mennonite Brethren Collegiate Inst."},{"$f":"SUBSTITUTE(PROPER('Update School Info Here'!F35),\"'S\",\"'s\")","v":"173 Talbot Avenue     "},{"$f":"SUBSTITUTE(PROPER('Update School Info Here'!I35),\"'S\",\"'s\")&\"     \"&'Update School Info Here'!J35","v":"Winnipeg     R2L0P6"},null,32,"Brandon - Riverview School",null,32,"Swan Valley",null,null,null,null,null,null,null,null,null,"Riverview School","Brandon"]
[null,"2028-29",33,{"$f":"SUBSTITUTE(PROPER('Update School Info Here'!E36),\"'S\",\"'s\")","v":"Mgc School"},{"$f":"SUBSTITUTE(PROPER('Update School Info Here'!F36),\"'S\",\"'s\")","v":"Box 40     "},{"$f":"SUBSTITUTE(PROPER('Update School Info Here'!I36),\"'S\",\"'s\")&\"     \"&'Update School Info Here'!J36","v":"Lauder      R0N1C0"},null,33,"Brandon - Spring Valley Colony School",null,33,"Turtle Mountain",null,null,null,null,null,null,null,null,null,"Spring Valley Colony School","Brandon"]
[null,"2029-20",34,{"$f":"SUBSTITUTE(PROPER('Update School Info Here'!E37),\"'S\",\"'s\")","v":"Mia Schol"},{"$f":"SUBSTITUTE(PROPER('Update School Info Here'!F37),\"'S\",\"'s\")","v":"2445 Waverley Street"},{"$f":"SUBSTITUTE(PROPER('Update School Info Here'!I37),\"'S\",\"'s\")&\"     \"&'Update School Info Here'!J37","v":"Winnipeg     R3Y1S3"},null,34,"Brandon - St. Augustine School",null,34,"Turtle River",null,null,null,null,null,null,null,null,null,"St. Augustine School","Brandon"]
[null,"2030-31",35,{"$f":"SUBSTITUTE(PROPER('Update School Info Here'!E38),\"'S\",\"'s\")","v":"Montessori Learning Centres (Riverview)"},{"$f":"SUBSTITUTE(PROPER('Update School Info Here'!F38),\"'S\",\"'s\")","v":"170 Ashland Avenue     "},{"$f":"SUBSTITUTE(PROPER('Update School Info Here'!I38),\"'S\",\"'s\")&\"     \"&'Update School Info Here'!J38","v":"Winnipeg     R3L1L1"},null,35,"Brandon - Valleyview Centennial School",null,35,"Western",null,null,null,null,null,null,null,null,null,"Valleyview Centennial School","Brandon"]
[null,null,36,{"$f":"SUBSTITUTE(PROPER('Update School Info Here'!E39),\"'S\",\"'s\")","v":"Morweena Christian School"},{"$f":"SUBSTITUTE(PROPER('Update School Info Here'!F39),\"'S\",\"'s\")","v":"Box 1030     "},{"$f":"SUBSTITUTE(PROPER('Update School Info Here'!I39),\"'S\",\"'s\")&\"     \"&'Update School Info Here'!J39","v":"Arborg     R0C0A0"},null,36,"Brandon - Vincent Massey High",null,36,"Whiteshell",null,null,null,null,null,null,null,null,null,"Vincent Massey High","Brandon"]
[null,null,37,{"$f":"SUBSTITUTE(PROPER('Update School Info Here'!E40),\"'S\",\"'s\")","v":"Northern Shield Academy"},{"$f":"SUBSTITUTE(PROPER('Update School Info Here'!F40),\"'S\",\"'s\")","v":"619 - 4Th Street East     Box 1309"},{"$f":"SUBSTITUTE(PROPER('Update School Info Here'!I40),\"'S\",\"'s\")&\"     \"&'Update School Info Here'!J40","v":"Stonewall     R0C2Z0"},null,37,"Brandon - Waverly Park School",null,null,null,null,null,null,null,null,null,null,null,null,"Waverly Park School","Brandon"]
[null,null,38,{"$f":"SUBSTITUTE(PROPER('Update School Info Here'!E41),\"'S\",\"'s\")","v":"Nova Montessori"},{"$f":"SUBSTITUTE(PROPER('Update School Info Here'!F41),\"'S\",\"'s\")","v":"C-3311 Pembina Highway     "},{"$f":"SUBSTITUTE(PROPER('Update School Info Here'!I41),\"'S\",\"'s\")&\"     \"&'Update School Info Here'!J41","v":"Winnipeg     R3V1T7"},null,38,"Fort La Bosse - Boundary Lane Colony School",null,null,null,null,null,null,null,null,null,null,null,null,"Boundary Lane Colony School","Fort La Bosse"]
[null,null,39,{"$f":"SUBSTITUTE(PROPER('Update School Info Here'!E42),\"'S\",\"'s\")","v":"Odanah Colony School"},{"$f":"SUBSTITUTE(PROPER('Update School Info Here'!F42),\"'S\",\"'s\")","v":"Box 990     "},{"$f":"SUBSTITUTE(PROPER('Update School Info Here'!I42),\"'S\",\"'s\")&\"     \"&'Update School Info Here'!J42","v":"Minnedosa     R0J1E0"},null,39,"Fort La Bosse - Elkhorn School",null,null,null,null,null,null,null,null,null,null,null,null,"Elkhorn School","Fort La Bosse"]
[null,null,40,{"$f":"SUBSTITUTE(PROPER('Update School Info Here'!E43),\"'S\",\"'s\")","v":"Oholei Torah School"},{"$f":"SUBSTITUTE(PROPER('Update School Info Here'!F43),\"'S\",\"'s\")","v":"1845 Mathers Avenue     "},{"$f":"SUBSTITUTE(PROPER('Update School Info Here'!I43),\"'S\",\"'s\")&\"     \"&'Update School Info Here'!J43","v":"Winnipeg     R3N0N2"},null,40,"Fort La Bosse - Goulter School",null,null,null,null,null,null,null,null,null,null,null,null,"Goulter School","Fort La Bosse"]
[null,null,41,{"$f":"SUBSTITUTE(PROPER('Update School Info Here'!E44),\"'S\",\"'s\")","v":"Our Lady Of Victory School"},{"$f":"SUBSTITUTE(PROPER('Update School Info Here'!F44),\"'S\",\"'s\")","v":"249 Arnold Avenue     "},{"$f":"SUBSTITUTE(PROPER('Update School Info Here'!I44),\"'S\",\"'s\")&\"     \"&'Update School Info Here'!J44","v":"Winnipeg     R3L0W4"},null,41,"Fort La Bosse - Kola School",null,null,null,null,null,null,null,null,null,null,null,null,"Kola School","Fort La Bosse"]
[null,null,42,{"$f":"SUBSTITUTE(PROPER('Update School Info Here'!E45),\"'S\",\"'s\")","v":"Pine Creek School"},{"$f":"SUBSTITUTE(PROPER('Update School Info Here'!F45),\"'S\",\"'s\")","v":"Pine Creek Colony     Box 370"},{"$f":"SUBSTITUTE(PROPER('Update School Info Here'!I45),\"'S\",\"'s\")&\"     \"&'Update School Info Here'!J45","v":"Austin     R0H0C0"},null,42,"Fort La Bosse - Mary Montgomery School",null,null,null,null,null,null,null,null,null,null,null,null,"Mary Montgomery School","Fort La Bosse"]
[null,null,43,{"$f":"SUBSTITUTE(PROPER('Update School Info Here'!E46),\"'S\",\"'s\")","v":"Poplar Point Colony School"},{"$f":"SUBSTITUTE(PROPER('Update School Info Here'!F46),\"'S\",\"'s\")","v":"Box 910     "},{"$f":"SUBSTITUTE(PROPER('Update School Info Here'!I46),\"'S\",\"'s\")&\"     \"&'Update School Info Here'!J46","v":"Portage La Prairie     R1N3C4"},null,43,"Fort La Bosse - Oak Lake Community School",null,null,null,null,null,null,null,null,null,null,null,null,"Oak Lake Community School","Fort La Bosse"]
[null,null,44,{"$f":"SUBSTITUTE(PROPER('Update School Info Here'!E47),\"'S\",\"'s\")","v":"Prairie Central Adventist Academy"},{"$f":"SUBSTITUTE(PROPER('Update School Info Here'!F47),\"'S\",\"'s\")","v":"56 Grey Street     "},{"$f":"SUBSTITUTE(PROPER('Update School Info Here'!I47),\"'S\",\"'s\")&\"     \"&'Update School Info Here'!J47","v":"Winnipeg     R2L1V3"},null,44,"Fort La Bosse - Plainview Colony School",null,null,null,null,null,null,null,null,null,null,null,null,"Plainview Colony School","Fort La Bosse"]
[null,null,45,{"$f":"SUBSTITUTE(PROPER('Update School Info Here'!E48),\"'S\",\"'s\")","v":"Shawenim Abinoojii School"},{"$f":"SUBSTITUTE(PROPER('Update School Info Here'!F48),\"'S\",\"'s\")","v":"323-181 Higgins Avenue     "},{"$f":"SUBSTITUTE(PROPER('Update School Info Here'!I48),\"'S\",\"'s\")&\"     \"&'Update School Info Here'!J48","v":"Winnipeg     R2B3G1"},null,45,"Fort La Bosse - Reston School",null,null,null,null,null,null,null,null,null,null,null,null,"Reston School","Fort La Bosse"]
[null,null,46,{"$f":"SUBSTITUTE(PROPER('Update School Info Here'!E49),\"'S\",\"'s\")","v":"Silverwinds School"},{"$f":"SUBSTITUTE(PROPER('Update School Info Here'!F49),\"'S\",\"'s\")","v":"Box 130     "},{"$f":"SUBSTITUTE(PROPER('Update School Info Here'!I49),\"'S\",\"'s\")&\"     \"&'Update School Info Here'!J49","v":"Sperling     R0G2M0"},null,46,"Fort La Bosse - Virden Collegiate",null,null,null,null,null,null,null,null,null,null,null,null,"Virden Collegiate","Fort La Bosse"]
[null,null,47,{"$f":"SUBSTITUTE(PROPER('Update School Info Here'!E50),\"'S\",\"'s\")","v":"Springs Christian Academy"},{"$f":"SUBSTITUTE(PROPER('Update School Info Here'!F50),\"'S\",\"'s\")","v":"261 Youville Street     "},{"$f":"SUBSTITUTE(PROPER('Update School Info Here'!I50),\"'S\",\"'s\")&\"     \"&'Update School Info Here'!J50","v":"Winnipeg     R2H2S7"},null,47,"Fort La Bosse - Virden Junior High",null,null,null,null,null,null,null,null,null,null,null,null,"Virden Junior High","Fort La Bosse"]
[null,null,48,{"$f":"SUBSTITUTE(PROPER('Update School Info Here'!E51),\"'S\",\"'s\")","v":"St. Alphonsus School"},{"$f":"SUBSTITUTE(PROPER('Update School Info Here'!F51),\"'S\",\"'s\")","v":"343 Munroe Avenue     "},{"$f":"SUBSTITUTE(PROPER('Update School Info Here'!I51),\"'S\",\"'s\")&\"     \"&'Update School Info Here'!J51","v":"Winnipeg     R2K1H2"},null,48,"Louis Riel - Archwood School",null,null,null,null,null,null,null,null,null,null,null,null,"Archwood School","Louis Riel"]
[null,null,49,{"$f":"SUBSTITUTE(PROPER('Update School Info Here'!E52),\"'S\",\"'s\")","v":"St. Boniface Diocesan High School"},{"$f":"SUBSTITUTE(PROPER('Update School Info Here'!F52),\"'S\",\"'s\")","v":"282 Dubuc Street     "},{"$f":"SUBSTITUTE(PROPER('Update School Info Here'!I52),\"'S\",\"'s\")&\"     \"&'Update School Info Here'!J52","v":"Winnipeg     R2H1E4"},null,49,"Louis Riel - Collège Béliveau",null,null,null,null,null,null,null,null,null,null,null,null,"Collège Béliveau","Louis Riel"]
[null,null,50,{"$f":"SUBSTITUTE(PROPER('Update School Info Here'!E53),\"'S\",\"'s\")","v":"St. Charles Interparochial School"},{"$f":"SUBSTITUTE(PROPER('Update School Info Here'!F53),\"'S\",\"'s\")","v":"331 St. Charles Street     "},{"$f":"SUBSTITUTE(PROPER('Update School Info Here'!I53),\"'S\",\"'s\")&\"     \"&'Update School Info Here'!J53","v":"Winnipeg     R3K1T6"},null,50,"Louis Riel - Collège Jeanne-Sauvé",null,null,null,null,null,null,null,null,null,null,null,null,"Collège Jeanne-Sauvé","Louis Riel"]
[null,null,51,{"$f":"SUBSTITUTE(PROPER('Update School Info Here'!E54),\"'S\",\"'s\")","v":"St. Edward's School"},{"$f":"SUBSTITUTE(PROPER('Update School Info Here'!F54),\"'S\",\"'s\")","v":"836 Arlington Street     "},{"$f":"SUBSTITUTE(PROPER('Update School Info Here'!I54),\"'S\",\"'s\")&\"     \"&'Update School Info Here'!J54","v":"Winnipeg     R3E2E4"},null,51,"Louis Riel - Dakota Collegiate",null,null,null,null,null,null,null,null,null,null,null,null,"Dakota Collegiate","Louis Riel"]
[null,null,52,{"$f":"SUBSTITUTE(PROPER('Update School Info Here'!E55),\"'S\",\"'s\")","v":"St. Emile School"},{"$f":"SUBSTITUTE(PROPER('Update School Info Here'!F55),\"'S\",\"'s\")","v":"552 St. Anne's Road     "},{"$f":"SUBSTITUTE(PROPER('Update School Info Here'!I55),\"'S\",\"'s\")&\"     \"&'Update School Info Here'!J55","v":"Winnipeg     R2M3G4"},null,52,"Louis Riel - Darwin School",null,null,null,null,null,null,null,null,null,null,null,null,"Darwin School","Louis Riel"]
[null,null,53,{"$f":"SUBSTITUTE(PROPER('Update School Info Here'!E56),\"'S\",\"'s\")","v":"St. Gerard School"},{"$f":"SUBSTITUTE(PROPER('Update School Info Here'!F56),\"'S\",\"'s\")","v":"40 Foster Street     "},{"$f":"SUBSTITUTE(PROPER('Update School Info Here'!I56),\"'S\",\"'s\")&\"     \"&'Update School Info Here'!J56","v":"Winnipeg     R2L1V7"},null,53,"Louis Riel - Dr. D. W. Penner School",null,null,null,null,null,null,null,null,null,null,null,null,"Dr. D. W. Penner School","Louis Riel"]
[null,null,54,{"$f":"SUBSTITUTE(PROPER('Update School Info Here'!E57),\"'S\",\"'s\")","v":"St. Ignatius School"},{"$f":"SUBSTITUTE(PROPER('Update School Info Here'!F57),\"'S\",\"'s\")","v":"239 Harrow Street     "},{"$f":"SUBSTITUTE(PROPER('Update School Info Here'!I57),\"'S\",\"'s\")&\"     \"&'Update School Info Here'!J57","v":"Winnipeg     R3M2Y3"},null,54,"Louis Riel - École George Mcdowell",null,null,null,null,null,null,null,null,null,null,null,null,"École George Mcdowell","Louis Riel"]
[null,null,55,{"$f":"SUBSTITUTE(PROPER('Update School Info Here'!E58),\"'S\",\"'s\")","v":"St. John Brebeuf School"},{"$f":"SUBSTITUTE(PROPER('Update School Info Here'!F58),\"'S\",\"'s\")","v":"605 Renfrew Street     "},{"$f":"SUBSTITUTE(PROPER('Update School Info Here'!I58),\"'S\",\"'s\")&\"     \"&'Update School Info Here'!J58","v":"Winnipeg     R3N1J8"},null,55,"Louis Riel - École Guyot",null,null,null,null,null,null,null,null,null,null,null,null,"École Guyot","Louis Riel"]
[null,null,56,{"$f":"SUBSTITUTE(PROPER('Update School Info Here'!E59),\"'S\",\"'s\")","v":"St. John's-Ravenscourt School"},{"$f":"SUBSTITUTE(PROPER('Update School Info Here'!F59),\"'S\",\"'s\")","v":"400 South Drive     "},{"$f":"SUBSTITUTE(PROPER('Update School Info Here'!I59),\"'S\",\"'s\")&\"     \"&'Update School Info Here'!J59","v":"Winnipeg     R3T3K5"},null,56,"Louis Riel - École Henri-Bergeron",null,null,null,null,null,null,null,null,null,null,null,null,"École Henri-Bergeron","Louis Riel"]
[null,null,57,{"$f":"SUBSTITUTE(PROPER('Update School Info Here'!E60),\"'S\",\"'s\")","v":"St. Joseph The Worker School"},{"$f":"SUBSTITUTE(PROPER('Update School Info Here'!F60),\"'S\",\"'s\")","v":"505 Brewster Street     "},{"$f":"SUBSTITUTE(PROPER('Update School Info Here'!I60),\"'S\",\"'s\")&\"     \"&'Update School Info Here'!J60","v":"Winnipeg     R2C2W6"},null,57,"Louis Riel - École Howden",null,null,null,null,null,null,null,null,null,null,null,null,"École Howden","Louis Riel"]
[null,null,58,{"$f":"SUBSTITUTE(PROPER('Update School Info Here'!E61),\"'S\",\"'s\")","v":"St. Mary's Academy"},{"$f":"SUBSTITUTE(PROPER('Update School Info Here'!F61),\"'S\",\"'s\")","v":"550 Wellington Crescent     "},{"$f":"SUBSTITUTE(PROPER('Update School Info Here'!I61),\"'S\",\"'s\")&\"     \"&'Update School Info Here'!J61","v":"Winnipeg     R3M0C1"},null,58,"Louis Riel - École Julie-Riel",null,null,null,null,null,null,null,null,null,null,null,null,"École Julie-Riel","Louis Riel"]
[null,null,59,{"$f":"SUBSTITUTE(PROPER('Update School Info Here'!E62),\"'S\",\"'s\")","v":"St. Maurice School"},{"$f":"SUBSTITUTE(PROPER('Update School Info Here'!F62),\"'S\",\"'s\")","v":"1639 Pembina Highway     "},{"$f":"SUBSTITUTE(PROPER('Update School Info Here'!I62),\"'S\",\"'s\")&\"     \"&'Update School Info Here'!J62","v":"Winnipeg     R3T2G6"},null,59,"Louis Riel - École Marie-Anne-Gaboury",null,null,null,null,null,null,null,null,null,null,null,null,"École Marie-Anne-Gaboury","Louis Riel"]
[null,null,60,{"$f":"SUBSTITUTE(PROPER('Update School Info Here'!E63),\"'S\",\"'s\")","v":"St. Paul's High School"},{"$f":"SUBSTITUTE(PROPER('Update School Info Here'!F63),\"'S\",\"'s\")","v":"2200 Grant Avenue     "},{"$f":"SUBSTITUTE(PROPER('Update School Info Here'!I63),\"'S\",\"'s\")&\"     \"&'Update School Info Here'!J63","v":"Winnipeg     R3P0P8"},null,60,"Louis Riel - École Mazina-Giizhik",null,null,null,null,null,null,null,null,null,null,null,null,"École Mazina-Giizhik","Louis Riel"]
[null,null,61,{"$f":"SUBSTITUTE(PROPER('Update School Info Here'!E64),\"'S\",\"'s\")","v":"Steinbach Christian School"},{"$f":"SUBSTITUTE(PROPER('Update School Info Here'!F64),\"'S\",\"'s\")","v":"50 Pth 12 North     "},{"$f":"SUBSTITUTE(PROPER('Update School Info Here'!I64),\"'S\",\"'s\")&\"     \"&'Update School Info Here'!J64","v":"Steinbach     R5G1T4"},null,61,"Louis Riel - École Provencher",null,null,null,null,null,null,null,null,null,null,null,null,"École Provencher","Louis Riel"]
[null,null,62,{"$f":"SUBSTITUTE(PROPER('Update School Info Here'!E65),\"'S\",\"'s\")","v":"The King's School"},{"$f":"SUBSTITUTE(PROPER('Update School Info Here'!F65),\"'S\",\"'s\")","v":"745 Kapelus Drive     "},{"$f":"SUBSTITUTE(PROPER('Update School Info Here'!I65),\"'S\",\"'s\")&\"     \"&'Update School Info Here'!J65","v":"West St. Paul     R4A5A4"},null,62,"Louis Riel - École Sage Creek School",null,null,null,null,null,null,null,null,null,null,null,null,"École Sage Creek School","Louis Riel"]
[null,null,63,{"$f":"SUBSTITUTE(PROPER('Update School Info Here'!E66),\"'S\",\"'s\")","v":"The Laureate Academy"},{"$f":"SUBSTITUTE(PROPER('Update School Info Here'!F66),\"'S\",\"'s\")","v":"100 Villa Maria Place     "},{"$f":"SUBSTITUTE(PROPER('Update School Info Here'!I66),\"'S\",\"'s\")&\"     \"&'Update School Info Here'!J66","v":"Winnipeg     R3V1A9"},null,63,{"$f":"W63&\" - \"&V63","v":"Louis Riel - École Saint-Germain"},null,null,null,null,null,null,null,null,null,null,null,null,"École Saint-Germain","Louis Riel"]
[null,null,64,{"$f":"SUBSTITUTE(PROPER('Update School Info Here'!E67),\"'S\",\"'s\")","v":"University Of Winnipeg Collegiate"},{"$f":"SUBSTITUTE(PROPER('Update School Info Here'!F67),\"'S\",\"'s\")","v":"515 Portage Avenue     "},{"$f":"SUBSTITUTE(PROPER('Update School Info Here'!I67),\"'S\",\"'s\")&\"     \"&'Update School Info Here'!J67","v":"Winnipeg     R3B2E9"},null,64,"Louis Riel - École Van Belleghem",null,null,null,null,null,null,null,null,null,null,null,null,"École Van Belleghem","Louis Riel"]
[null,null,65,{"$f":"SUBSTITUTE(PROPER('Update School Info Here'!E68),\"'S\",\"'s\")","v":"Westgate Mennonite Collegiate"},{"$f":"SUBSTITUTE(PROPER('Update School Info Here'!F68),\"'S\",\"'s\")","v":"86 West Gate     "},{"$f":"SUBSTITUTE(PROPER('Update School Info Here'!I68),\"'S\",\"'s\")&\"     \"&'Update School Info Here'!J68","v":"Winnipeg     R3E2E1"},null,65,"Louis Riel - École Varennes",null,null,null,null,null,null,null,null,null,null,null,null,"École Varennes","Louis Riel"]
[null,null,66,{"$f":"SUBSTITUTE(PROPER('Update School Info Here'!E69),\"'S\",\"'s\")","v":"Westpark School"},{"$f":"SUBSTITUTE(PROPER('Update School Info Here'!F69),\"'S\",\"'s\")","v":"2375B Saskatchewan Avenue W     "},{"$f":"SUBSTITUTE(PROPER('Update School Info Here'!I69),\"'S\",\"'s\")&\"     \"&'Update School Info Here'!J69","v":"Portage La Prairie     R1N4A6"},null,66,"Louis Riel - Frontenac School",null,null,null,null,null,null,null,null,null,null,null,null,"Frontenac School","Louis Riel"]
[null,null,67,{"$f":"SUBSTITUTE(PROPER('Update School Info Here'!E70),\"'S\",\"'s\")","v":"Wingham Hb School"},{"$f":"SUBSTITUTE(PROPER('Update School Info Here'!F70),\"'S\",\"'s\")","v":"Box 219     "},{"$f":"SUBSTITUTE(PROPER('Update School Info Here'!I70),\"'S\",\"'s\")&\"     \"&'Update School Info Here'!J70","v":"Elm Creek     R0G0N0"},null,67,"Louis Riel - General Vanier School",null,null,null,null,null,null,null,null,null,null,null,null,"General Vanier School","Louis Riel"]
[null,null,68,{"$f":"SUBSTITUTE(PROPER('Update School Info Here'!E71),\"'S\",\"'s\")","v":"Winnipeg Mennonite Elem & Middle Schools"},{"$f":"SUBSTITUTE(PROPER('Update School Info Here'!F71),\"'S\",\"'s\")","v":"250 Bedson Street     "},{"$f":"SUBSTITUTE(PROPER('Update School Info Here'!I71),\"'S\",\"'s\")&\"     \"&'Update School Info Here'!J71","v":"Winnipeg     R3K1R7"},null,{"$f":"+H67+1","v":68},"Louis Riel - Glenlawn Collegiate",null,null,null,null,null,null,null,null,null,null,null,null,"Glenlawn Collegiate","Louis Riel"]
[null,null,69,{"$f":"SUBSTITUTE(PROPER('Update School Info Here'!E72),\"'S\",\"'s\")","v":"Winnipeg South Academy"},{"$f":"SUBSTITUTE(PROPER('Update School Info Here'!F72),\"'S\",\"'s\")","v":"870 Scotland Ave.     "},{"$f":"SUBSTITUTE(PROPER('Update School Info Here'!I72),\"'S\",\"'s\")&\"     \"&'Update School Info Here'!J72","v":"Winnipeg     R3M1X8"},null,69,"Louis Riel - Glenwood School",null,null,null,null,null,null,null,null,null,null,null,null,"Glenwood School","Louis Riel"]
[null,null,70,{"$f":"SUBSTITUTE(PROPER('Update School Info Here'!E73),\"'S\",\"'s\")","v":""},{"$f":"SUBSTITUTE(PROPER('Update School Info Here'!F73),\"'S\",\"'s\")","v":""},{"$f":"SUBSTITUTE(PROPER('Update School Info Here'!I73),\"'S\",\"'s\")&\"     \"&'Update School Info Here'!J73","v":"     "},null,70,"Louis Riel - H. S. Paul School",null,null,null,null,null,null,null,null,null,null,null,null,"H. S. Paul School","Louis Riel"]
[null,null,71,{"$f":"SUBSTITUTE(PROPER('Update School Info Here'!E74),\"'S\",\"'s\")","v":""},{"$f":"SUBSTITUTE(PROPER('Update School Info Here'!F74),\"'S\",\"'s\")","v":""},{"$f":"SUBSTITUTE(PROPER('Update School Info Here'!I74),\"'S\",\"'s\")&\"     \"&'Update School Info Here'!J74","v":"     "},null,71,"Louis Riel - Hastings School",null,null,null,null,null,null,null,null,null,null,null,null,"Hastings School","Louis Riel"]
[null,null,72,{"$f":"SUBSTITUTE(PROPER('Update School Info Here'!E75),\"'S\",\"'s\")","v":""},{"$f":"SUBSTITUTE(PROPER('Update School Info Here'!F75),\"'S\",\"'s\")","v":""},{"$f":"SUBSTITUTE(PROPER('Update School Info Here'!I75),\"'S\",\"'s\")&\"     \"&'Update School Info Here'!J75","v":"     "},null,72,"Louis Riel - Highbury School",null,null,null,null,null,null,null,null,null,null,null,null,"Highbury School","Louis Riel"]
[null,null,73,{"$f":"SUBSTITUTE(PROPER('Update School Info Here'!E76),\"'S\",\"'s\")","v":""},{"$f":"SUBSTITUTE(PROPER('Update School Info Here'!F76),\"'S\",\"'s\")","v":""},{"$f":"SUBSTITUTE(PROPER('Update School Info Here'!I76),\"'S\",\"'s\")&\"     \"&'Update School Info Here'!J76","v":"     "},null,73,"Louis Riel - Island Lakes Community School",null,null,null,null,null,null,null,null,null,null,null,null,"Island Lakes Community School","Louis Riel"]
[null,null,null,null,null,null,null,74,"Louis Riel - J. H. Bruns Collegiate",null,null,null,null,null,null,null,null,null,null,null,null,"J. H. Bruns Collegiate","Louis Riel"]
[null,null,null,null,null,null,null,75,"Louis Riel - Lavallee School",null,null,null,null,null,null,null,null,null,null,null,null,"Lavallee School","Louis Riel"]
[null,null,null,null,null,null,null,76,"Louis Riel - Louis Riel S.D. Arts And Technology Ctr.",null,null,null,null,null,null,null,null,null,null,null,null,"Louis Riel S.D. Arts And Technology Ctr.","Louis Riel"]
[null,null,null,null,null,null,null,77,"Louis Riel - Marion School",null,null,null,null,null,null,null,null,null,null,null,null,"Marion School","Louis Riel"]
[null,null,null,null,null,null,null,78,"Louis Riel - Minnetonka School",null,null,null,null,null,null,null,null,null,null,null,null,"Minnetonka School","Louis Riel"]
[null,null,null,null,null,null,null,79,"Louis Riel - Nelson Mcintyre Collegiate",null,null,null,null,null,null,null,null,null,null,null,null,"Nelson Mcintyre Collegiate","Louis Riel"]
[null,null,null,null,null,null,null,80,"Louis Riel - Niakwa Place School",null,null,null,null,null,null,null,null,null,null,null,null,"Niakwa Place School","Louis Riel"]
[null,null,null,null,null,null,null,81,"Louis Riel - Nordale School",null,null,null,null,null,null,null,null,null,null,null,null,"Nordale School","Louis Riel"]
[null,null,null,null,null,null,null,82,"Louis Riel - Sage Creek School",null,null,null,null,null,null,null,null,null,null,null,null,"Sage Creek School","Louis Riel"]
[null,null,null,null,null,null,null,83,"Louis Riel - Samuel Burland School",null,null,null,null,null,null,null,null,null,null,null,null,"Samuel Burland School","Louis Riel"]
[null,null,null,null,null,null,null,84,"Louis Riel - Shamrock School",null,null,null,null,null,null,null,null,null,null,null,null,"Shamrock School","Louis Riel"]
[null,null,null,null,null,null,null,85,"Louis Riel - St. George School",null,null,null,null,null,null,null,null,null,null,null,null,"St. George School","Louis Riel"]
[null,null,null,null,null,null,null,86,"Louis Riel - Victor H.L. Wyatt School",null,null,null,null,null,null,null,null,null,null,null,null,"Victor H.L. Wyatt School","Louis Riel"]
[null,null,null,null,null,null,null,87,"Louis Riel - Victor Mager School",null,null,null,null,null,null,null,null,null,null,null,null,"Victor Mager School","Louis Riel"]
[null,null,null,null,null,null,null,88,"Louis Riel - Windsor Park Collegiate",null,null,null,null,null,null,null,null,null,null,null,null,"Windsor Park Collegiate","Louis Riel"]
[null,null,null,null,null,null,null,89,"Louis Riel - Windsor School",null,null,null,null,null,null,null,null,null,null,null,null,"Windsor School","Louis Riel"]
[null,null,null,null,null,null,null,90,"Evergreen - Arborg Collegiate",null,null,null,null,null,null,null,null,null,null,null,null,"Arborg Collegiate","Evergreen"]
[null,null,null,null,null,null,null,91,"Evergreen - Arborg Early/Middle Years School",null,null,null,null,null,null,null,null,null,null,null,null,"Arborg Early/Middle Years School","Evergreen"]
[null,null,null,null,null,null,null,92,"Evergreen - Dr. George Johnson Middle School",null,null,null,null,null,null,null,null,null,null,null,null,"Dr. George Johnson Middle School","Evergreen"]
[null,null,null,null,null,null,null,93,"Evergreen - Gimli High School",null,null,null,null,null,null,null,null,null,null,null,null,"Gimli High School","Evergreen"]
[null,null,null,null,null,null,null,94,"Evergreen - Riverton Collegiate",null,null,null,null,null,null,null,null,null,null,null,null,"Riverton Collegiate","Evergreen"]
[null,null,null,null,null,null,null,95,{"$f":"W95&\" - \"&V95","v":"Evergreen - Riverton Early Middle Years School"},null,null,null,null,null,null,null,null,null,null,null,null,"Riverton Early Middle Years School","Evergreen"]
[null,null,null,null,null,null,null,96,"Evergreen - Sigurbjorg Stefansson Early School",null,null,null,null,null,null,null,null,null,null,null,null,"Sigurbjorg Stefansson Early School","Evergreen"]
[null,null,null,null,null,null,null,97,"Evergreen - Winnipeg Beach School",null,null,null,null,null,null,null,null,null,null,null,null,"Winnipeg Beach School","Evergreen"]
[null,null,null,null,null,null,null,98,"Pembina Trails - Acadia Junior High School",null,null,null,null,null,null,null,null,null,null,null,null,"Acadia Junior High School","Pembina Trails"]
[null,null,null,null,null,null,null,99,"Pembina Trails - Arthur A. Leach Junior High",null,null,null,null,null,null,null,null,null,null,null,null,"Arthur A. Leach Junior High","Pembina Trails"]
[null,null,null,null,null,null,null,100,"Pembina Trails - Bairdmore School",null,null,null,null,null,null,null,null,null,null,null,null,"Bairdmore School","Pembina Trails"]
[null,null,null,null,null,null,null,101,"Pembina Trails - Beaumont School",null,null,null,null,null,null,null,null,null,null,null,null,"Beaumont School","Pembina Trails"]
[null,null,null,null,null,null,null,102,"Pembina Trails - Beaverlodge School",null,null,null,null,null,null,null,null,null,null,null,null,"Beaverlodge School","Pembina Trails"]
[null,null,null,null,null,null,null,103,"Pembina Trails - Bison Run School",null,null,null,null,null,null,null,null,null,null,null,null,"Bison Run School","Pembina Trails"]
[null,null,null,null,null,null,null,104,"Pembina Trails - Chancellor Elementary",null,null,null,null,null,null,null,null,null,null,null,null,"Chancellor Elementary","Pembina Trails"]
[null,null,null,null,null,null,null,105,"Pembina Trails - Dalhousie School",null,null,null,null,null,null,null,null,null,null,null,null,"Dalhousie School","Pembina Trails"]
[null,null,null,null,null,null,null,106,"Pembina Trails - École Charleswood School",null,null,null,null,null,null,null,null,null,null,null,null,"École Charleswood School","Pembina Trails"]
[null,null,null,null,null,null,null,107,"Pembina Trails - École Crane",null,null,null,null,null,null,null,null,null,null,null,null,"École Crane","Pembina Trails"]
[null,null,null,null,null,null,null,108,"Pembina Trails - École Dieppe",null,null,null,null,null,null,null,null,null,null,null,null,"École Dieppe","Pembina Trails"]
[null,null,null,null,null,null,null,109,"Pembina Trails - École Saint-Avila",null,null,null,null,null,null,null,null,null,null,null,null,"École Saint-Avila","Pembina Trails"]
[null,null,null,null,null,null,null,110,"Pembina Trails - École South Pointe School",null,null,null,null,null,null,null,null,null,null,null,null,"École South Pointe School","Pembina Trails"]
[null,null,null,null,null,null,null,111,"Pembina Trails - École Tuxedo Park",null,null,null,null,null,null,null,null,null,null,null,null,"École Tuxedo Park","Pembina Trails"]
[null,null,null,null,null,null,null,112,"Pembina Trails - École Viscount Alexander",null,null,null,null,null,null,null,null,null,null,null,null,"École Viscount Alexander","Pembina Trails"]
[null,null,null,null,null,null,null,113,"Pembina Trails - Fort Richmond Collegiate",null,null,null,null,null,null,null,null,null,null,null,null,"Fort Richmond Collegiate","Pembina Trails"]
[null,null,null,null,null,null,null,114,"Pembina Trails - General Byng School",null,null,null,null,null,null,null,null,null,null,null,null,"General Byng School","Pembina Trails"]
[null,null,null,null,null,null,null,115,"Pembina Trails - Henry G. Izatt Middle School",null,null,null,null,null,null,null,null,null,null,null,null,"Henry G. Izatt Middle School","Pembina Trails"]
[null,null,null,null,null,null,null,116,"Pembina Trails - Laidlaw School",null,null,null,null,null,null,null,null,null,null,null,null,"Laidlaw School","Pembina Trails"]
[null,null,null,null,null,null,null,117,"Pembina Trails - Linden Meadows School",null,null,null,null,null,null,null,null,null,null,null,null,"Linden Meadows School","Pembina Trails"]
[null,null,null,null,null,null,null,118,"Pembina Trails - Oak Park High",null,null,null,null,null,null,null,null,null,null,null,null,"Oak Park High","Pembina Trails"]
[null,null,null,null,null,null,null,119,"Pembina Trails - Oakenwald School",null,null,null,null,null,null,null,null,null,null,null,null,"Oakenwald School","Pembina Trails"]
[null,null,null,null,null,null,null,120,"Pembina Trails - Pacific Junction School",null,null,null,null,null,null,null,null,null,null,null,null,"Pacific Junction School","Pembina Trails"]
[null,null,null,null,null,null,null,121,"Pembina Trails - Pembina Trails Alternative High School",null,null,null,null,null,null,null,null,null,null,null,null,"Pembina Trails Alternative High School","Pembina Trails"]
[null,null,null,null,null,null,null,122,"Pembina Trails - Pembina Trails Collegiate",null,null,null,null,null,null,null,null,null,null,null,null,"Pembina Trails Collegiate","Pembina Trails"]
[null,null,null,null,null,null,null,123,"Pembina Trails - Pembina Trails Early College School",null,null,null,null,null,null,null,null,null,null,null,null,"Pembina Trails Early College School","Pembina Trails"]
[null,null,null,null,null,null,null,124,"Pembina Trails - Prairie Sunrise School",null,null,null,null,null,null,null,null,null,null,null,null,"Prairie Sunrise School","Pembina Trails"]
[null,null,null,null,null,null,null,125,"Pembina Trails - R.H.G. Bonnycastle School",null,null,null,null,null,null,null,null,null,null,null,null,"R.H.G. Bonnycastle School","Pembina Trails"]
[null,null,null,null,null,null,null,126,"Pembina Trails - Ralph Maybank School",null,null,null,null,null,null,null,null,null,null,null,null,"Ralph Maybank School","Pembina Trails"]
[null,null,null,null,null,null,null,127,{"$f":"W127&\" - \"&V127","v":"Pembina Trails - River West Park School"},null,null,null,null,null,null,null,null,null,null,null,null,"River West Park School","Pembina Trails"]
[null,null,null,null,null,null,null,128,"Pembina Trails - Royal School",null,null,null,null,null,null,null,null,null,null,null,null,"Royal School","Pembina Trails"]
[null,null,null,null,null,null,null,129,"Pembina Trails - Shaftesbury High",null,null,null,null,null,null,null,null,null,null,null,null,"Shaftesbury High","Pembina Trails"]
[null,null,null,null,null,null,null,130,"Pembina Trails - Van Walleghem School",null,null,null,null,null,null,null,null,null,null,null,null,"Van Walleghem School","Pembina Trails"]
[null,null,null,null,null,null,null,131,"Pembina Trails - Vincent Massey Collegiate",null,null,null,null,null,null,null,null,null,null,null,null,"Vincent Massey Collegiate","Pembina Trails"]
[null,null,null,null,null,null,null,{"$f":"+H131+1","v":132},"Pembina Trails - Westdale Junior High",null,null,null,null,null,null,null,null,null,null,null,null,"Westdale Junior High","Pembina Trails"]
[null,null,null,null,null,null,null,133,"Pembina Trails - Westgrove School",null,null,null,null,null,null,null,null,null,null,null,null,"Westgrove School","Pembina Trails"]
[null,null,null,null,null,null,null,134,"Pembina Trails - Whyte Ridge Elementary",null,null,null,null,null,null,null,null,null,null,null,null,"Whyte Ridge Elementary","Pembina Trails"]
[null,null,null,null,null,null,null,135,"Prairie Spririt - Baldur School",null,null,null,null,null,null,null,null,null,null,null,null,"Baldur School","Prairie Spririt"]
[null,null,null,null,null,null,null,136,"Prairie Spririt - Boyne Valley School",null,null,null,null,null,null,null,null,null,null,null,null,"Boyne Valley School","Prairie Spririt"]
[null,null,null,null,null,null,null,137,"Prairie Spririt - Cartwright School",null,null,null,null,null,null,null,null,null,null,null,null,"Cartwright School","Prairie Spririt"]
[null,null,null,null,null,null,null,138,"Prairie Spririt - Crystal City Early Years School",null,null,null,null,null,null,null,null,null,null,null,null,"Crystal City Early Years School","Prairie Spririt"]
[null,null,null,null,null,null,null,139,"Prairie Spririt - Evergreen Colony School",null,null,null,null,null,null,null,null,null,null,null,null,"Evergreen Colony School","Prairie Spririt"]
[null,null,null,null,null,null,null,140,"Prairie Spririt - Fairholme Colony School",null,null,null,null,null,null,null,null,null,null,null,null,"Fairholme Colony School","Prairie Spririt"]
[null,null,null,null,null,null,null,141,"Prairie Spririt - Glenboro School",null,null,null,null,null,null,null,null,null,null,null,null,"Glenboro School","Prairie Spririt"]
[null,null,null,null,null,null,null,142,"Prairie Spririt - Harmony Colony School",null,null,null,null,null,null,null,null,null,null,null,null,"Harmony Colony School","Prairie Spririt"]
[null,null,null,null,null,null,null,143,"Prairie Spririt - Holland Elementary",null,null,null,null,null,null,null,null,null,null,null,null,"Holland Elementary","Prairie Spririt"]
[null,null,null,null,null,null,null,144,"Prairie Spririt - Kamsley School",null,null,null,null,null,null,null,null,null,null,null,null,"Kamsley School","Prairie Spririt"]
[null,null,null,null,null,null,null,145,"Prairie Spririt - Manitou Elementary",null,null,null,null,null,null,null,null,null,null,null,null,"Manitou Elementary","Prairie Spririt"]
[null,null,null,null,null,null,null,146,"Prairie Spririt - Nellie Mcclung Collegiate",null,null,null,null,null,null,null,null,null,null,null,null,"Nellie Mcclung Collegiate","Prairie Spririt"]
[null,null,null,null,null,null,null,147,"Prairie Spririt - New Rosedale School",null,null,null,null,null,null,null,null,null,null,null,null,"New Rosedale School","Prairie Spririt"]
[null,null,null,null,null,null,null,148,"Prairie Spririt - Pilot Mound School",null,null,null,null,null,null,null,null,null,null,null,null,"Pilot Mound School","Prairie Spririt"]
[null,null,null,null,null,null,null,149,"Prairie Spririt - Prairie Mountain Elementary School",null,null,null,null,null,null,null,null,null,null,null,null,"Prairie Mountain Elementary School","Prairie Spririt"]
[null,null,null,null,null,null,null,150,"Prairie Spririt - Prairie Mountain High School",null,null,null,null,null,null,null,null,null,null,null,null,"Prairie Mountain High School","Prairie Spririt"]
[null,null,null,null,null,null,null,151,"Prairie Spririt - Sandy Bank School",null,null,null,null,null,null,null,null,null,null,null,null,"Sandy Bank School","Prairie Spririt"]
[null,null,null,null,null,null,null,152,"Prairie Spririt - Shady Lane School",null,null,null,null,null,null,null,null,null,null,null,null,"Shady Lane School","Prairie Spririt"]
[null,null,null,null,null,null,null,153,"Prairie Spririt - Shamrock School",null,null,null,null,null,null,null,null,null,null,null,null,"Shamrock School","Prairie Spririt"]
[null,null,null,null,null,null,null,154,"Prairie Spririt - St. Claude School Complex",null,null,null,null,null,null,null,null,null,null,null,null,"St. Claude School Complex","Prairie Spririt"]
[null,null,null,null,null,null,null,155,"Prairie Spririt - Ste. Marie School",null,null,null,null,null,null,null,null,null,null,null,null,"Ste. Marie School","Prairie Spririt"]
[null,null,null,null,null,null,null,156,"Prairie Spririt - Thomas Greenway Middle Years School",null,null,null,null,null,null,null,null,null,null,null,null,"Thomas Greenway Middle Years School","Prairie Spririt"]
[null,null,null,null,null,null,null,157,"Prairie Spririt - Treherne Collegiate",null,null,null,null,null,null,null,null,null,null,null,null,"Treherne Collegiate","Prairie Spririt"]
[null,null,null,null,null,null,null,158,"Prairie Spririt - Treherne Elementary",null,null,null,null,null,null,null,null,null,null,null,null,"Treherne Elementary","Prairie Spririt"]
[null,null,null,null,null,null,null,159,"Prairie Spririt - Valleyview School",null,null,null,null,null,null,null,null,null,null,null,null,"Valleyview School","Prairie Spririt"]
[null,null,null,null,null,null,null,160,"Prairie Spririt - West Valley School",null,null,null,null,null,null,null,null,null,null,null,null,"West Valley School","Prairie Spririt"]
[null,null,null,null,null,null,null,161,"Prairie Spririt - Whistling Wind School",null,null,null,null,null,null,null,null,null,null,null,null,"Whistling Wind School","Prairie Spririt"]
[null,null,null,null,null,null,null,162,"Prairie Spririt - Willow Creek Colony School",null,null,null,null,null,null,null,null,null,null,null,null,"Willow Creek Colony School","Prairie Spririt"]
[null,null,null,null,null,null,null,163,"Prairie Spririt - Windy Bay School",null,null,null,null,null,null,null,null,null,null,null,null,"Windy Bay School","Prairie Spririt"]

{"sheet":"Update School Info Here","index":2,"n_rows":72,"n_cols":13,"rows_kept":72,"cut":false,"hidden":true,"merged":[]}
[]
[]
[{"$f":"COUNTA(D5:D72)","v":68},"EMPDIV","LOCDIV","NBR","SCHOOL_NAME","SCHOOL_ADDR_LINE1",null,"SCHOOL_ADDR_LINE2","CITY","POSTAL_CODE","LOW_GRADE","HIGH_GRADE","OPENING"]
[]
["Funded Independent Schools",107,186,2221,"ACADÉMIE ISLAMIQUE DU MANITOBA",{"$f":"G5&\"     \"&H5","v":"178 WORTHINGTON AVENUE     "},"178 WORTHINGTON AVENUE",null,"WINNIPEG","R2M1R7","K",8,2003]
["Funded Independent Schools",107,188,2114,"ALHIJRA ISLAMIC SCHOOL",{"$f":"G6&\"     \"&H6","v":"410 DESALABERRY AVENUE     "},"410 DESALABERRY AVENUE",null,"WINNIPEG","R2L0Y7","K",9,1996]
["Funded Independent Schools",107,127,1733,"AUSTIN CHRISTIAN ACADEMY","BOX 460     ","BOX 460",null,"AUSTIN","R0H0C0","K",12]
["Funded Independent Schools",107,151,1536,"BALMORAL HALL SCHOOL","630 WESTMINSTER AVENUE     ","630 WESTMINSTER AVENUE",null,"WINNIPEG","R3C3S1","K",12]
["Funded Independent Schools",107,186,2102,"BEAUTIFUL SAVIOR LUTHERAN SCHOOL","52 BIRCHDALE AVE.     ","52 BIRCHDALE AVE.",null,"WINNIPEG","R2H1R9","N",8,1995]
["Funded Independent Schools",107,196,1077,"CALVIN CHRISTIAN SCHOOL","245 SUTTON AVENUE     ","245 SUTTON AVENUE",null,"WINNIPEG","R2G0T1","K",12]
["Funded Independent Schools",107,193,2055,"CARTWRIGHT COMMUNITY INDEPENDENT SCH.","BOX 419  810 BROADWAY STREET     ","BOX 419  810 BROADWAY STREET",null,"CARTWRIGHT","R0K0L0",12,12]
["Funded Independent Schools",107,151,1861,"CHILDREN'S HOUSE","150 PACIFIC AVENUE     ","150 PACIFIC AVENUE",null,"WINNIPEG","R3B3K8","N","K"]
["F.I. Schools-Catholic",198,186,1482,"CHRIST THE KING SCHOOL","12 LENNOX AVENUE     ","12 LENNOX AVENUE",null,"WINNIPEG","R2M1A6","N",8]
["Funded Independent Schools",107,119,1148,"CHRISTIAN HERITAGE SCHOOL","2025 26TH STREET     ","2025 26TH STREET",null,"BRANDON","R7B3Y2","K",8]
["Funded Independent Schools",107,120,1239,"COMMUNITY BIBLE FELLOWSHIP CHRISTIAN","BOX 1630     ","BOX 1630",null,"SWAN RIVER","R0L1Z0","K",8]
["Funded Independent Schools",107,118,2284,"DASMESH SCHOOL","105 HOLMES ROAD     ","105 HOLMES ROAD",null,"WEST ST. PAUL","R4A6A2","N",10,2012]
["Funded Independent Schools",107,195,1157,"DUFFERIN CHRISTIAN SCHOOL","BOX 1450     ","BOX 1450",null,"CARMAN","R0G0J0","K",12]
["Funded Independent Schools",107,118,1315,"FAITH ACADEMY","437 MATHESON AVE.     ","437 MATHESON AVE.",null,"WINNIPEG","R2W0E1","K",12]
["Funded Independent Schools",107,151,2317,"FREEDOM INTERNATIONAL SCHOOL","771 SARGENT AVENUE     ","771 SARGENT AVENUE",null,"WINNIPEG","R3E0B5",8,12,2018]
["Funded Independent Schools",null,null,2342,"GABLES HERITAGE","Box 1558","Box 1558",null,"ALTONA","R0G 0B0","K",8]
["F.I. Schools-Catholic",198,151,2311,"GONZAGA MIDDLE SCHOOL","174 MAPLE STREET NORTH     ","174 MAPLE STREET NORTH",null,"WINNIPEG","R2W3L4",6,8,2016]
["F.I.School-Jewish Education Authority",165,151,2230,"GRAY ACADEMY OF JEWISH EDUCATION","100 - 123 DONCASTER STREET     ","100 - 123 DONCASTER STREET",null,"WINNIPEG","R3N2B4","N",12,2003]
["Funded Independent Schools",107,191,2151,"GREEN ACRES COLONY HIGH SCHOOL","BOX 190     ","BOX 190",null,"WAWANESA","R0K2G0",9,12,2000]
["Funded Independent Schools",107,127,2117,"H. B. COMMUNITY SCHOOL","BOX 40     ","BOX 40",null,"MACGREGOR","R0H0R0","K",12,1996]
["F.I. Schools-Catholic",198,186,1549,"HOLY CROSS SCHOOL","300 DUBUC STREET     ","300 DUBUC STREET",null,"WINNIPEG","R2H1E4","K",8]
["F.I. Schools-Catholic",198,151,1653,"HOLY GHOST SCHOOL","319 SELKIRK AVENUE     ","319 SELKIRK AVENUE",null,"WINNIPEG","R2W2L8","K",8]
["Funded Independent Schools",107,151,2109,"HOPE CHRISTIAN ACADEMY WINNIPEG INC.",{"$f":"G27&\"     \"&H27","v":"418 ABERDEEN AVENUE     "},"418 ABERDEEN AVENUE",null,"WINNIPEG","R2W1V7","N",10,1995]
["F.I. Schools-Catholic",198,151,1523,"IMMACULATE HEART OF MARY SCHOOL","650 FLORA AVENUE     ","650 FLORA AVENUE",null,"WINNIPEG","R2W2S5","N",8]
["Funded Independent Schools",107,196,1274,"IMMANUEL CHRISTIAN SCHOOL","215 ROUGEAU AVENUE     ","215 ROUGEAU AVENUE",null,"WINNIPEG","R2C3Z9","K",12]
["Funded Independent Schools",107,188,2308,"INSPIRED EXPLORATIONS LEARNING COMMUNITY","UNIT A - 5905 ROBLIN BLVD     ","UNIT A - 5905 ROBLIN BLVD",null,"WINNIPEG","R3R0G8","N",8,2016]
["Funded Independent Schools",107,151,2291,"IQRA ISLAMIC SCHOOL","404 WEBB PLACE     ","404 WEBB PLACE",null,"WINNIPEG","R3B3J4","N",8,2014]
["Funded Independent Schools",107,103,2197,"KOLA COMMUNITY SCHOOL","BOX 553     ","BOX 553",null,"KOLA","R0M1B0","N","K"]
["Funded Independent Schools",107,141,1998,"LAKESIDE CHRISTIAN SCHOOL","BOX 894     237 HAMMOND STREET","BOX 894","237 HAMMOND STREET","KILLARNEY","R0K1G0","K",12]
["Funded Independent Schools",107,151,1981,"LINDEN CHRISTIAN SCHOOL","877 WILKES AVENUE     ","877 WILKES AVENUE",null,"WINNIPEG","R3P1B8","K",12]
["Funded Independent Schools",107,151,1101,"MENNONITE BRETHREN COLLEGIATE INST.","173 TALBOT AVENUE     ","173 TALBOT AVENUE",null,"WINNIPEG","R2L0P6",5,12]
["Funded Independent Schools",null,null,2345,"MGC SCHOOL","BOX 40     ","BOX 40",null,"LAUDER ","R0N1C0",9,12]
["Funded Independent Schools",null,null,2346,"MIA SCHOL","2445 WAVERLEY STREET","2445 WAVERLEY STREET",null,"WINNIPEG","R3Y1S3","K",7]
["Funded Independent Schools",107,151,2042,"MONTESSORI LEARNING CENTRES (RIVERVIEW)","170 ASHLAND AVENUE     ","170 ASHLAND AVENUE",null,"WINNIPEG","R3L1L1","N","K"]
["Funded Independent Schools",107,144,1670,"MORWEENA CHRISTIAN SCHOOL","BOX 1030     ","BOX 1030",null,"ARBORG","R0C0A0","K",12]
["Funded Independent Schools",107,155,2243,"NORTHERN SHIELD ACADEMY","619 - 4TH STREET EAST     BOX 1309","619 - 4TH STREET EAST","BOX 1309","STONEWALL","R0C2Z0",3,12,2004]
["Funded Independent Schools",107,136,2293,"NOVA MONTESSORI","C-3311 PEMBINA HIGHWAY     ","C-3311 PEMBINA HIGHWAY",null,"WINNIPEG","R3V1T7","N","K",2014]
["Funded Independent Schools",107,156,2105,"ODANAH COLONY SCHOOL","BOX 990     ","BOX 990",null,"MINNEDOSA","R0J1E0","K",12,1995]
["Funded Independent Schools",107,118,1997,"OHOLEI TORAH SCHOOL","1845 MATHERS AVENUE     ","1845 MATHERS AVENUE",null,"WINNIPEG","R3N0N2","N",8]
["F.I. Schools-Catholic",198,151,1241,"OUR LADY OF VICTORY SCHOOL","249 ARNOLD AVENUE     ","249 ARNOLD AVENUE",null,"WINNIPEG","R3L0W4","K",8]
["Funded Independent Schools",107,153,1407,"PINE CREEK SCHOOL","PINE CREEK COLONY     BOX 370","PINE CREEK COLONY","BOX 370","AUSTIN","R0H0C0","K",12]
["Funded Independent Schools",107,195,1362,"POPLAR POINT COLONY SCHOOL","BOX 910     ","BOX 910",null,"PORTAGE LA PRAIRIE","R1N3C4","K",12]
["Funded Independent Schools",107,151,1304,"PRAIRIE CENTRAL ADVENTIST ACADEMY","56 GREY STREET     ","56 GREY STREET",null,"WINNIPEG","R2L1V3","N",12]
["Funded Independent Schools",107,151,2326,"SHAWENIM ABINOOJII SCHOOL","323-181 HIGGINS AVENUE     ","323-181 HIGGINS AVENUE",null,"WINNIPEG","R2B3G1",9,12,2019]
["Funded Independent Schools",107,195,2219,"SILVERWINDS SCHOOL","BOX 130     ","BOX 130",null,"SPERLING","R0G2M0","K",12,2003]
["Funded Independent Schools",107,186,1942,"SPRINGS CHRISTIAN ACADEMY","261 YOUVILLE STREET     ","261 YOUVILLE STREET",null,"WINNIPEG","R2H2S7","K",12]
["F.I. Schools-Catholic",198,196,1087,"ST. ALPHONSUS SCHOOL","343 MUNROE AVENUE     ","343 MUNROE AVENUE",null,"WINNIPEG","R2K1H2","K",8]
["F.I. Schools-Catholic",198,186,1257,"ST. BONIFACE DIOCESAN HIGH SCHOOL","282 DUBUC STREET     ","282 DUBUC STREET",null,"WINNIPEG","R2H1E4",9,12]
["F.I. Schools-Catholic",198,114,1244,"ST. CHARLES INTERPAROCHIAL SCHOOL","331 ST. CHARLES STREET     ","331 ST. CHARLES STREET",null,"WINNIPEG","R3K1T6","K",8]
["F.I. Schools-Catholic",198,151,1430,"ST. EDWARD'S SCHOOL","836 ARLINGTON STREET     ","836 ARLINGTON STREET",null,"WINNIPEG","R3E2E4","K",6]
["F.I. Schools-Catholic",198,186,1791,"ST. EMILE SCHOOL","552 ST. ANNE'S ROAD     ","552 ST. ANNE'S ROAD",null,"WINNIPEG","R2M3G4","K",8]
["F.I. Schools-Catholic",198,151,1562,"ST. GERARD SCHOOL","40 FOSTER STREET     ","40 FOSTER STREET",null,"WINNIPEG","R2L1V7","N",8]
["F.I. Schools-Catholic",198,151,1829,"ST. IGNATIUS SCHOOL","239 HARROW STREET     ","239 HARROW STREET",null,"WINNIPEG","R3M2Y3","N",8]
["F.I. Schools-Catholic",198,151,1729,"ST. JOHN BREBEUF SCHOOL","605 RENFREW STREET     ","605 RENFREW STREET",null,"WINNIPEG","R3N1J8","K",8]
["Funded Independent Schools",107,188,1155,"ST. JOHN'S-RAVENSCOURT SCHOOL","400 SOUTH DRIVE     ","400 SOUTH DRIVE",null,"WINNIPEG","R3T3K5","K",12]
["F.I. Schools-Catholic",198,196,1756,"ST. JOSEPH THE WORKER SCHOOL","505 BREWSTER STREET     ","505 BREWSTER STREET",null,"WINNIPEG","R2C2W6","N",6]
["F.I. Schools-Catholic",198,151,1478,"ST. MARY'S ACADEMY","550 WELLINGTON CRESCENT     ","550 WELLINGTON CRESCENT",null,"WINNIPEG","R3M0C1",7,12]
["F.I. Schools-Catholic",198,188,1232,"ST. MAURICE SCHOOL","1639 PEMBINA HIGHWAY     ","1639 PEMBINA HIGHWAY",null,"WINNIPEG","R3T2G6","K",12]
["F.I. Schools-Catholic",198,188,1832,"ST. PAUL'S HIGH SCHOOL","2200 GRANT AVENUE     ","2200 GRANT AVENUE",null,"WINNIPEG","R3P0P8",9,12]
["Funded Independent Schools",107,174,1453,"STEINBACH CHRISTIAN SCHOOL","50 PTH 12 NORTH     ","50 PTH 12 NORTH",null,"STEINBACH","R5G1T4","K",12]
["Funded Independent Schools",107,118,1962,"THE KING'S SCHOOL","745 KAPELUS DRIVE     ","745 KAPELUS DRIVE",null,"WEST ST. PAUL","R4A5A4","N",12]
["Funded Independent Schools",107,114,1980,"THE LAUREATE ACADEMY","100 VILLA MARIA PLACE     ","100 VILLA MARIA PLACE",null,"WINNIPEG","R3V1A9",1,12]
["Funded Independent Schools",107,151,1690,"UNIVERSITY OF WINNIPEG COLLEGIATE","515 PORTAGE AVENUE     ","515 PORTAGE AVENUE",null,"WINNIPEG","R3B2E9",9,12]
["Funded Independent Schools",107,151,1285,"WESTGATE MENNONITE COLLEGIATE","86 WEST GATE     ","86 WEST GATE",null,"WINNIPEG","R3E2E1",6,12]
["Funded Independent Schools",107,121,1983,"WESTPARK SCHOOL","2375B SASKATCHEWAN AVENUE W     ","2375B SASKATCHEWAN AVENUE W",null,"PORTAGE LA PRAIRIE","R1N4A6","K",12]
["Funded Independent Schools",107,195,1988,"WINGHAM HB SCHOOL","BOX 219     ","BOX 219",null,"ELM CREEK","R0G0N0","K",12]
["Funded Independent Schools",107,114,1242,"WINNIPEG MENNONITE ELEM & MIDDLE SCHOOLS","250 BEDSON STREET     ","250 BEDSON STREET",null,"WINNIPEG","R3K1R7","K",8]
["Funded Independent Schools",107,188,1961,"WINNIPEG SOUTH ACADEMY",{"$f":"G72&\"     \"&H72","v":"870 SCOTLAND AVE.     "},"870 SCOTLAND AVE.",null,"WINNIPEG","R3M1X8","N",4]